[Event "GCT Saint Louis Blitz 2019"]
[Site "Saint Louis"]
[Date "2019.08.13"]
[Round "1"]
[White "Caruana, Fabiano"]
[Black "Rapport, Richard"]
[Result "0-1"]
[ECO "B06"]
[WhiteElo "2818"]
[BlackElo "2747"]
[Annotator "RC"]
[PlyCount "102"]
[EventDate "2019.08.13"]
[EventType "tourn"]
[EventCountry "USA"]
[SourceTitle "playchess.com"]
[Source "ChessBase"]
[SourceQuality "1"]
[TimeMode "Bronstein"]
[TimeControl "300+3"]

1. e4 {[%emt 0:00:00]} g6 {[%emt 0:00:00]} 2. d4 {[%emt 0:00:00]} c6 {[%emt 0:00:00]} 3. c4 {[%emt 0:00:02]} Bg7 {[%emt 0:00:00]} 4. Nc3 {[%emt 0:00:02]} d6 {[%emt 0:00:00]} 5. f4 {[%emt 0:00:06]} Qb6 {[%emt 0:00:00]} 6. e5 {[%emt 0:00:12]} Nh6 {[%emt 0:00:02]} 7. Be2 {[%emt 0:00:41]} O-O {[%emt 0:00:02]} 8. Nf3 {[%emt 0:00:03]} Bg4 {[%emt 0:00:02]} 9. Qb3 {[%emt 0:00:14]} Nf5 {[%emt 0:00:05]} 10. Qxb6 {[%emt 0:00:24]} axb6 {[%emt 0:00:03]} 11. d5 {[%emt 0:00:54]} Bxf3 {[%emt 0:00:05]} 12. Bxf3 {[%emt 0:00:03]} dxe5 {[%emt 0:00:06]} 13. fxe5 {[%emt 0:00:17]} Bxe5 {[%emt 0:00:11]} 14. O-O {[%emt 0:00:05]} Na6 {[%emt 0:00:29]} 15. dxc6 {[%emt 0:00:07]} bxc6 {[%emt 0:00:03]} 16. Bxc6 {[%emt 0:00:03]} Rad8 {[%emt 0:00:12]} 17. Be4 {[%emt 0:00:11]} Nd6 {[%emt 0:00:18]} 18. Bf3 {[%emt 0:00:22]} Nc5 {[%emt 0:00:50]} 19. Nd5 {[%emt 0:00:10]} e6 {[%emt 0:00:04]} 20. Ne7+ {[%emt 0:00:03]} Kg7 {[%emt 0:00:06]} 21. Nc6 {[%emt 0:00:03]} Nxc4 {[%emt 0:00:16]} 22. Be2 {[%emt 0:00:09]} Rc8 {[%emt 0:00:16]} 23. Nxe5 {[%emt 0:00:14]} Nxe5 {[%emt 0:00:03]} 24. Be3 {[%emt 0:00:03]} f6 {[%emt 0:00:17]} 25. a4 {[%emt 0:00:16]} Ra8 {[%emt 0:00:13]} 26. a5 {[%emt 0:00:08]} Nb3 {[%emt 0:00:03]} 27. Bxb6 {[%emt 0:00:11]} Nxa1 {[%emt 0:00:04]} 28. Rxa1 {[%emt 0:00:03]} Rfb8 {[%emt 0:00:03]} 29. Bd4 {[%emt 0:00:05]} Nc6 {[%emt 0:00:04]} 30. Bc3 {[%emt 0:00:03]} Nxa5 {[%emt 0:00:04]} 31. Bf3 {[%emt 0:00:16]} Ra7 {[%emt 0:00:08]} 32. b4 {[%emt 0:00:32]} Nc6 {[%emt 0:00:20]} 33. Bxc6 {[%emt 0:00:03]} Rxa1+ {[%emt 0:00:03]} 34. Bxa1 {[%emt 0:00:03]} Rxb4 {[%emt 0:00:03]} 35. Kf2 {[%emt 0:00:05]} h5 {[%emt 0:00:10]} 36. Bf3 {[%emt 0:00:03]} e5 {[%emt 0:00:07]} 37. Bc3 {[%emt 0:00:03]} Ra4 {[%emt 0:00:03]} 38. h3 {[%emt 0:00:03]} h4 {[%emt 0:00:09]} 39. Be2 {[%emt 0:00:03]} g5 {[%emt 0:00:07]} 40. Bb2 {[%emt 0:00:05]} Kg6 {[%emt 0:00:04]} 41. Bc3 {[%emt 0:00:03]} Ra3 {[%emt 0:00:16]} 42. Bb4 {[%emt 0:00:03]} Rb3 {[%emt 0:00:04]} 43. Bd6 {[%emt 0:00:03]} Kf5 {[%emt 0:00:10]} 44. Bc5 {[%emt 0:00:03]} Kf4 {[%emt 0:00:05]} 45. Bd6 {[%emt 0:00:03]} f5 {[%emt 0:00:13]} 46. Be7 {[%emt 0:00:03]} Rb2 {[%emt 0:00:06]} 47. Bc5 {[%emt 0:00:04]} g4 {[%emt 0:00:03]} 48. hxg4 {[%emt 0:00:03]} fxg4 {[%emt 0:00:03]} 49. Be3+ {[%emt 0:00:03]} Ke4 {[%emt 0:00:16]} 50. Bc5 {[%emt 0:00:11]} h3 {[%emt 0:00:04]} 51. gxh3 {[%emt 0:00:03]} gxh3 {[%emt 0:00:03]} 0-1

[Event "GCT Saint Louis Blitz 2019"]
[Site "Saint Louis"]
[Date "2019.08.13"]
[Round "1"]
[White "Dominguez Perez, Leinier"]
[Black "Mamedyarov, Shakhriyar"]
[Result "0-1"]
[ECO "C54"]
[WhiteElo "2763"]
[BlackElo "2764"]
[Annotator "ChessBase"]
[PlyCount "88"]
[EventDate "2019.08.13"]
[EventType "tourn"]
[EventCountry "USA"]
[SourceTitle "playchess.com"]
[Source "ChessBase"]
[SourceQuality "1"]
[TimeMode "Bronstein"]
[TimeControl "300+3"]

1. e4 {[%emt 0:00:00]} e5 {[%emt 0:00:00]} 2. Nf3 {[%emt 0:00:00]} Nc6 {[%emt 0:00:00]} 3. Bc4 {[%emt 0:00:00]} Bc5 {[%emt 0:00:00]} 4. c3 {[%emt 0:00:00]} Nf6 {[%emt 0:00:00]} 5. d3 {[%emt 0:00:00]} d6 {[%emt 0:00:00]} 6. Nbd2 {[%emt 0:00:00]} a5 {[%emt 0:00:06]} 7. O-O {[%emt 0:00:00]} O-O {[%emt 0:00:06]} 8. h3 {[%emt 0:00:00]} h6 {[%emt 0:00:09]} 9. Re1 {[%emt 0:00:00]} Be6 {[%emt 0:00:08]} 10. Bb5 {[%emt 0:00:00]} Qb8 {[%emt 0:00:03]} 11. Nf1 {[%emt 0:00:00]} Qa7 {[%emt 0:00:06]} 12. Qd2 {[%emt 0:00:00]} a4 {[%emt 0:00:13]} 13. Ng3 {[%emt 0:00:00]} Rfd8 {[%emt 0:00:13]} 14. Bxc6 {[%emt 0:00:38]} bxc6 {[%emt 0:00:03]} 15. d4 {[%emt 0:00:50]} Bb6 {[%emt 0:00:09]} 16. Qd1 {[%emt 0:00:22]} exd4 {[%emt 0:00:09]} 17. Nxd4 {[%emt 0:00:11]} Re8 {[%emt 0:00:22]} 18. Be3 {[%emt 0:00:03]} c5 {[%emt 0:00:06]} 19. Nxe6 {[%emt 0:00:47]} Rxe6 {[%emt 0:00:03]} 20. Qc2 {[%emt 0:00:03]} Rae8 {[%emt 0:00:04]} 21. f3 {[%emt 0:00:04]} d5 {[%emt 0:00:03]} 22. Bf2 {[%emt 0:00:10]} c4 {[%emt 0:00:22]} 23. Rad1 {[%emt 0:00:31]} h5 {[%emt 0:00:03]} 24. Kf1 {[%emt 0:00:22]} h4 {[%emt 0:00:08]} 25. Nf5 {[%emt 0:00:12]} dxe4 {[%emt 0:00:03]} 26. Bxh4 {[%emt 0:00:08]} Qa5 {[%emt 0:00:29]} 27. Bxf6 {[%emt 0:00:12]} Rxf6 {[%emt 0:00:03]} 28. fxe4 {[%emt 0:00:14]} g6 {[%emt 0:00:16]} 29. g4 {[%emt 0:00:08]} gxf5 {[%emt 0:00:34]} 30. exf5 {[%emt 0:00:03]} Rxe1+ {[%emt 0:00:10]} 31. Rxe1 {[%emt 0:00:03]} Qc5 {[%emt 0:00:06]} 32. Kg2 {[%emt 0:00:08]} Rd6 {[%emt 0:00:03]} 33. Qe2 {[%emt 0:00:09]} Kh7 {[%emt 0:00:14]} 34. Rf1 {[%emt 0:00:14]} Rd3 {[%emt 0:00:04]} 35. Qe4 {[%emt 0:00:13]} Qe3 {[%emt 0:00:37]} 36. Qxe3 {[%emt 0:00:09]} Rxe3 {[%emt 0:00:03]} 37. Rf2 {[%emt 0:00:08]} Rxh3 {[%emt 0:00:08]} 38. Rf4 {[%emt 0:00:03]} Rd3 {[%emt 0:00:34]} 39. Rxc4 {[%emt 0:00:03]} Rd2+ {[%emt 0:00:03]} 40. Kg3 {[%emt 0:00:03]} Rxb2 {[%emt 0:00:03]} 41. Rxa4 {[%emt 0:00:03]} Rc2 {[%emt 0:00:07]} 42. Rc4 {[%emt 0:00:05]} Rxa2 {[%emt 0:00:09]} 43. g5 {[%emt 0:00:03]} Kg7 {[%emt 0:00:03]} 44. Kg4 Rc2 0-1

[Event "GCT Saint Louis Blitz 2019"]
[Site "Saint Louis"]
[Date "2019.08.13"]
[Round "2"]
[White "Rapport, Richard"]
[Black "Vachier-Lagrave, Maxime"]
[Result "1-0"]
[ECO "A45"]
[WhiteElo "2747"]
[BlackElo "2778"]
[Annotator "RC"]
[PlyCount "73"]
[EventDate "2019.08.13"]
[EventType "tourn"]
[EventCountry "USA"]
[SourceTitle "playchess.com"]
[Source "ChessBase"]
[SourceQuality "1"]
[TimeMode "Bronstein"]
[TimeControl "300+3"]

1. d4 {[%emt 0:00:00]} Nf6 {[%emt 0:00:00]} 2. Bg5 {[%emt 0:00:00]} d5 {[%emt 0:00:00]} 3. e3 {[%emt 0:00:00]} c5 {[%emt 0:00:00]} 4. c3 {[%emt 0:00:00]} Qb6 {[%emt 0:00:12]} 5. Qc2 {[%emt 0:00:00]} Nc6 {[%emt 0:00:04]} 6. Nd2 {[%emt 0:00:00]} e6 {[%emt 0:00:15]} 7. Ngf3 {[%emt 0:00:02]} Be7 {[%emt 0:00:03]} 8. Bd3 {[%emt 0:00:05]} h6 {[%emt 0:00:13]} 9. Bh4 {[%emt 0:00:03]} Bd7 {[%emt 0:00:03]} 10. a3 {[%emt 0:00:07]} Rc8 {[%emt 0:00:03]} 11. Qb1 {[%emt 0:00:12]} cxd4 {[%emt 0:00:06]} 12. exd4 {[%emt 0:00:06]} O-O {[%emt 0:00:07]} 13. O-O {[%emt 0:00:06]} Nh5 {[%emt 0:00:20]} 14. Ne5 {[%emt 0:00:04]} Nxe5 {[%emt 0:00:20]} 15. Bh7+ {[%emt 0:00:05]} Kh8 {[%emt 0:00:03]} 16. Bxe7 {[%emt 0:00:03]} Rfe8 {[%emt 0:00:03]} 17. Bh4 {[%emt 0:00:21]} f5 {[%emt 0:00:09]} 18. dxe5 {[%emt 0:00:28]} Kxh7 {[%emt 0:00:03]} 19. Nf3 {[%emt 0:00:24]} Rc4 {[%emt 0:00:15]} 20. Rd1 {[%emt 0:00:31]} Re4 {[%emt 0:00:14]} 21. Rd4 {[%emt 0:00:31]} g5 {[%emt 0:00:10]} 22. Bxg5 {[%emt 0:00:04]} Rxd4 {[%emt 0:00:03]} 23. Be3 {[%emt 0:00:03]} Re4 {[%emt 0:00:16]} 24. Bxb6 {[%emt 0:00:03]} axb6 {[%emt 0:00:03]} 25. Qc2 {[%emt 0:00:12]} Nf4 {[%emt 0:00:06]} 26. Re1 {[%emt 0:00:04]} Ng6 {[%emt 0:00:13]} 27. Qb3 {[%emt 0:00:14]} b5 {[%emt 0:00:03]} 28. Rxe4 fxe4 29. Nd4 {[%emt 0:00:06]} Nxe5 {[%emt 0:00:03]} 30. Qb4 {[%emt 0:00:03]} Bc6 {[%emt 0:00:10]} 31. Qd6 {[%emt 0:00:07]} Nc4 {[%emt 0:00:05]} 32. Qf4 {[%emt 0:00:07]} Kg6 {[%emt 0:00:05]} 33. b3 {[%emt 0:00:03]} Nb6 {[%emt 0:00:05]} 34. Qg4+ {[%emt 0:00:05]} Kf6 {[%emt 0:00:04]} 35. Qh5 {[%emt 0:00:03]} Rh8 {[%emt 0:00:08]} 36. Nxe6 {[%emt 0:00:09]} Be8 {[%emt 0:00:03]} 37. Qg4 {[%emt 0:00:03]} 1-0

[Event "GCT Saint Louis Blitz 2019"]
[Site "Saint Louis"]
[Date "2019.08.13"]
[Round "4"]
[White "Yu, Yangyi"]
[Black "Dominguez Perez, Leinier"]
[Result "1-0"]
[ECO "C48"]
[WhiteElo "2752"]
[BlackElo "2763"]
[Annotator "ChessBase"]
[PlyCount "103"]
[EventDate "2019.08.13"]
[EventType "tourn"]
[EventCountry "USA"]
[SourceTitle "playchess.com"]
[Source "ChessBase"]
[SourceQuality "1"]
[TimeMode "Bronstein"]
[TimeControl "300+3"]

1. e4 {[%emt 0:00:00]} e5 {[%emt 0:00:00]} 2. Nf3 {[%emt 0:00:00]} Nc6 {[%emt 0:00:00]} 3. Nc3 {[%emt 0:00:00]} Nf6 {[%emt 0:00:00]} 4. Bb5 {[%emt 0:00:00]} Nd4 {[%emt 0:00:00]} 5. Bc4 {[%emt 0:00:00]} Bc5 {[%emt 0:00:00]} 6. Nxe5 {[%emt 0:00:00]} Qe7 {[%emt 0:00:00]} 7. Nf3 {[%emt 0:00:00]} d5 {[%emt 0:00:00]} 8. Nxd5 {[%emt 0:00:00]} Qxe4+ {[%emt 0:00:48]} 9. Ne3 {[%emt 0:00:00]} Bg4 {[%emt 0:01:09]} 10. Be2 {[%emt 0:00:00]} Nxe2 {[%emt 0:00:38]} 11. Qxe2 {[%emt 0:00:00]} O-O {[%emt 0:00:16]} 12. d3 {[%emt 0:00:00]} Qa4 {[%emt 0:00:26]} 13. Nxg4 {[%emt 0:00:03]} Nxg4 {[%emt 0:00:03]} 14. O-O {[%emt 0:00:03]} Rfe8 {[%emt 0:00:03]} 15. Qd1 {[%emt 0:00:05]} h6 {[%emt 0:00:27]} 16. h3 {[%emt 0:00:12]} Ne5 {[%emt 0:00:03]} 17. Nxe5 {[%emt 0:00:03]} Rxe5 {[%emt 0:00:03]} 18. c3 {[%emt 0:00:04]} Qxd1 {[%emt 0:00:35]} 19. Rxd1 {[%emt 0:00:03]} Re2 {[%emt 0:00:03]} 20. d4 {[%emt 0:00:03]} Bd6 {[%emt 0:00:03]} 21. Bd2 {[%emt 0:00:21]} Rae8 {[%emt 0:00:03]} 22. Re1 {[%emt 0:00:07]} R8e6 {[%emt 0:00:05]} 23. Rxe2 {[%emt 0:00:04]} Rxe2 {[%emt 0:00:03]} 24. Rd1 {[%emt 0:00:03]} b5 {[%emt 0:00:04]} 25. Kf1 {[%emt 0:00:03]} Re6 {[%emt 0:00:03]} 26. Re1 {[%emt 0:00:07]} Rxe1+ 27. Kxe1 {[%emt 0:00:03]} f5 {[%emt 0:00:13]} 28. Ke2 {[%emt 0:00:03]} Kf7 {[%emt 0:00:03]} 29. Kd3 {[%emt 0:00:03]} Ke6 {[%emt 0:00:03]} 30. c4 {[%emt 0:00:44]} c6 {[%emt 0:00:03]} 31. d5+ {[%emt 0:00:04]} Kd7 {[%emt 0:00:03]} 32. dxc6+ {[%emt 0:00:06]} Kxc6 {[%emt 0:00:03]} 33. cxb5+ {[%emt 0:00:16]} Kxb5 {[%emt 0:00:03]} 34. b3 {[%emt 0:00:03]} h5 {[%emt 0:00:03]} 35. f3 {[%emt 0:00:08]} a6 {[%emt 0:00:03]} 36. a4+ {[%emt 0:00:03]} Kc5 {[%emt 0:00:04]} 37. b4+ {[%emt 0:00:56]} Kd5 {[%emt 0:00:03]} 38. Kc3 {[%emt 0:00:03]} g6 {[%emt 0:00:15]} 39. Be3 {[%emt 0:00:10]} Be5+ {[%emt 0:00:24]} 40. Kb3 {[%emt 0:00:06]} Bd6 {[%emt 0:00:04]} 41. b5 {[%emt 0:00:07]} axb5 {[%emt 0:00:03]} 42. axb5 {[%emt 0:00:03]} f4 {[%emt 0:00:07]} 43. Bg1 {[%emt 0:00:32]} Be5 {[%emt 0:00:03]} 44. Kb4 {[%emt 0:00:12]} Bd6+ {[%emt 0:00:03]} 45. Ka5 {[%emt 0:00:16]} Kc4 {[%emt 0:00:03]} 46. b6 {[%emt 0:00:03]} Kd3 {[%emt 0:00:03]} 47. b7 {[%emt 0:00:04]} Ke2 {[%emt 0:00:04]} 48. Kb6 {[%emt 0:00:27]} Kf1 {[%emt 0:00:03]} 49. Kc6 {[%emt 0:00:08]} Bb8 {[%emt 0:00:03]} 50. Bb6 {[%emt 0:00:05]} Kxg2 {[%emt 0:00:03]} 51. Bc7 {[%emt 0:00:03]} Ba7 {[%emt 0:00:03]} 52. Kb5 {[%emt 0:00:03]} 1-0

[Event "GCT Saint Louis Blitz 2019"]
[Site "Saint Louis"]
[Date "2019.08.13"]
[Round "5"]
[White "Dominguez Perez, Leinier"]
[Black "Rapport, Richard"]
[Result "1/2-1/2"]
[ECO "C10"]
[WhiteElo "2763"]
[BlackElo "2747"]
[Annotator "ChessBase"]
[PlyCount "65"]
[EventDate "2019.08.13"]
[EventType "tourn"]
[EventCountry "USA"]
[SourceTitle "playchess.com"]
[Source "ChessBase"]
[SourceQuality "1"]
[TimeMode "Bronstein"]
[TimeControl "300+3"]

1. e4 {[%emt 0:00:00]} e6 {[%emt 0:00:00]} 2. d4 {[%emt 0:00:00]} d5 {[%emt 0:00:00]} 3. Nc3 {[%emt 0:00:00]} dxe4 {[%emt 0:00:00]} 4. Nxe4 {[%emt 0:00:00]} Bd7 {[%emt 0:00:00]} 5. Nf3 {[%emt 0:00:20]} Bc6 {[%emt 0:00:00]} 6. Bd3 {[%emt 0:00:08]} Nd7 {[%emt 0:00:00]} 7. Neg5 {[%emt 0:00:19]} Ngf6 {[%emt 0:00:26]} 8. O-O {[%emt 0:00:10]} Bd6 {[%emt 0:00:13]} 9. Qe2 {[%emt 0:01:15]} h6 {[%emt 0:00:16]} 10. Ne4 {[%emt 0:00:03]} Nxe4 {[%emt 0:00:05]} 11. Bxe4 {[%emt 0:00:03]} Bxe4 {[%emt 0:00:03]} 12. Qxe4 {[%emt 0:00:03]} c6 {[%emt 0:00:03]} 13. Rd1 {[%emt 0:00:03]} O-O {[%emt 0:00:23]} 14. c4 {[%emt 0:00:03]} Re8 {[%emt 0:00:05]} 15. Qc2 {[%emt 0:00:15]} Qc7 {[%emt 0:00:12]} 16. Be3 {[%emt 0:00:28]} Rad8 {[%emt 0:00:25]} 17. g3 {[%emt 0:00:04]} e5 {[%emt 0:00:09]} 18. dxe5 {[%emt 0:00:10]} Nxe5 {[%emt 0:00:03]} 19. Nxe5 {[%emt 0:00:03]} Bxe5 {[%emt 0:00:03]} 20. Rac1 {[%emt 0:00:19]} Rxd1+ {[%emt 0:00:36]} 21. Rxd1 {[%emt 0:00:03]} Rd8 {[%emt 0:00:03]} 22. b3 {[%emt 0:00:08]} a6 {[%emt 0:00:05]} 23. Rxd8+ {[%emt 0:00:13]} Qxd8 {[%emt 0:00:03]} 24. Qe4 {[%emt 0:00:03]} Bf6 {[%emt 0:00:07]} 25. Kg2 {[%emt 0:00:05]} h5 {[%emt 0:00:03]} 26. h3 {[%emt 0:00:03]} g6 {[%emt 0:00:03]} 27. g4 {[%emt 0:00:04]} hxg4 {[%emt 0:00:03]} 28. hxg4 {[%emt 0:00:03]} Qd7 {[%emt 0:00:14]} 29. g5 {[%emt 0:00:19]} Bc3 {[%emt 0:00:05]} 30. Kg3 {[%emt 0:00:20]} Bb2 {[%emt 0:00:08]} 31. Kg2 {[%emt 0:00:06]} Bc3 {[%emt 0:00:03]} 32. Kg3 {[%emt 0:00:04]} Bb2 {[%emt 0:00:03]} 33. Kg2 {[%emt 0:00:03]} 1/2-1/2

[Event "GCT Saint Louis Blitz 2019"]
[Site "Saint Louis"]
[Date "2019.08.13"]
[Round "6"]
[White "Dominguez Perez, Leinier"]
[Black "Aronian, Levon"]
[Result "1-0"]
[ECO "C65"]
[WhiteElo "2763"]
[BlackElo "2765"]
[Annotator "RC"]
[PlyCount "61"]
[EventDate "2019.08.13"]
[EventType "tourn"]
[EventCountry "USA"]
[SourceTitle "playchess.com"]
[Source "ChessBase"]
[SourceQuality "1"]
[TimeMode "Bronstein"]
[TimeControl "300+3"]

1. e4 {[%emt 0:00:00]} e5 {[%emt 0:00:00]} 2. Nf3 {[%emt 0:00:00]} Nc6 {[%emt 0:00:00]} 3. Bb5 {[%emt 0:00:00]} Nf6 {[%emt 0:00:00]} 4. d3 {[%emt 0:00:03]} Bc5 {[%emt 0:00:00]} 5. Bxc6 {[%emt 0:00:11]} dxc6 {[%emt 0:00:00]} 6. Nbd2 {[%emt 0:00:03]} Be6 {[%emt 0:00:01]} 7. O-O {[%emt 0:00:06]} Bd6 {[%emt 0:00:01]} 8. Nb3 {[%emt 0:00:06]} a5 {[%emt 0:00:45]} 9. Qe1 {[%emt 0:00:04]} a4 {[%emt 0:00:34]} 10. Na5 {[%emt 0:00:03]} Qb8 {[%emt 0:00:12]} 11. b4 {[%emt 0:00:03]} Bg4 {[%emt 0:01:04]} 12. Nh4 {[%emt 0:00:54]} O-O {[%emt 0:00:03]} 13. Nc4 {[%emt 0:00:09]} Be6 {[%emt 0:00:10]} 14. Nxd6 {[%emt 0:00:21]} cxd6 {[%emt 0:00:03]} 15. f4 {[%emt 0:00:03]} exf4 {[%emt 0:00:49]} 16. Bxf4 {[%emt 0:00:05]} Re8 {[%emt 0:00:15]} 17. a3 {[%emt 0:00:36]} Nh5 {[%emt 0:00:20]} 18. Bd2 {[%emt 0:00:35]} d5 {[%emt 0:00:20]} 19. Qe2 {[%emt 0:00:33]} Nf6 {[%emt 0:00:03]} 20. Rxf6 {[%emt 0:00:44]} gxf6 {[%emt 0:00:03]} 21. Rf1 {[%emt 0:00:08]} dxe4 {[%emt 0:00:07]} 22. Bc3 {[%emt 0:00:07]} Qd6 {[%emt 0:00:29]} 23. Bxf6 {[%emt 0:00:14]} h6 {[%emt 0:00:22]} 24. Qh5 {[%emt 0:00:08]} Kh7 {[%emt 0:00:04]} 25. Nf5 {[%emt 0:00:16]} Qf8 {[%emt 0:00:03]} 26. dxe4 {[%emt 0:00:15]} Rad8 {[%emt 0:00:03]} 27. Rf4 {[%emt 0:00:08]} Rd2 {[%emt 0:00:03]} 28. Rg4 {[%emt 0:00:03]} Rd1+ {[%emt 0:00:03]} 29. Kf2 Rd2+ 30. Ke1 {[%emt 0:00:03]} Rxc2 {[%emt 0:00:03]} 31. Bg7 {[%emt 0:00:07]} 1-0

[Event "GCT Saint Louis Blitz 2019"]
[Site "Saint Louis"]
[Date "2019.08.14"]
[Round "12"]
[White "Ding, Liren"]
[Black "Aronian, Levon"]
[Result "0-1"]
[ECO "D37"]
[WhiteElo "2805"]
[BlackElo "2765"]
[Annotator "RC"]
[PlyCount "83"]
[EventDate "2019.08.13"]
[EventType "tourn"]
[EventCountry "USA"]
[SourceTitle "playchess.com"]
[Source "ChessBase"]
[SourceQuality "1"]
[TimeMode "Bronstein"]
[TimeControl "300+3"]

1. d4 {[%emt 0:00:00]} Nf6 {[%emt 0:00:00]} 2. c4 {[%emt 0:00:00]} e6 {[%emt 0:00:00]} 3. Nf3 {[%emt 0:00:00]} d5 {[%emt 0:00:00]} 4. Nc3 {[%emt 0:00:00]} Nbd7 {[%emt 0:00:00]} 5. Bf4 {[%emt 0:00:00]} dxc4 {[%emt 0:00:04]} 6. e3 {[%emt 0:00:00]} b5 {[%emt 0:00:12]} 7. Nxb5 {[%emt 0:00:00]} Bb4+ {[%emt 0:00:03]} 8. Nc3 {[%emt 0:00:01]} Nd5 {[%emt 0:00:04]} 9. Rc1 {[%emt 0:00:13]} N7b6 {[%emt 0:00:17]} 10. Bg3 {[%emt 0:00:03]} c5 {[%emt 0:00:39]} 11. Be2 {[%emt 0:00:04]} O-O {[%emt 0:00:12]} 12. O-O {[%emt 0:00:03]} Bb7 {[%emt 0:00:16]} 13. Nxd5 {[%emt 0:00:25]} Qxd5 {[%emt 0:00:49]} 14. a3 {[%emt 0:01:04]} cxd4 {[%emt 0:00:03]} 15. Qxd4 {[%emt 0:00:05]} Be7 {[%emt 0:00:11]} 16. Qxd5 {[%emt 0:00:23]} Bxd5 {[%emt 0:00:11]} 17. Nd2 {[%emt 0:00:03]} Rac8 {[%emt 0:00:43]} 18. e4 {[%emt 0:00:47]} c3 {[%emt 0:00:15]} 19. Nb1 {[%emt 0:01:07]} c2 {[%emt 0:00:30]} 20. exd5 {[%emt 0:00:07]} cxb1=Q {[%emt 0:00:03]} 21. Rxb1 {[%emt 0:00:03]} Nxd5 {[%emt 0:00:03]} 22. Rfd1 {[%emt 0:00:20]} Bf6 {[%emt 0:00:08]} 23. Bf3 {[%emt 0:00:07]} Rfd8 {[%emt 0:00:22]} 24. b4 {[%emt 0:00:07]} g6 {[%emt 0:00:14]} 25. Bxd5 {[%emt 0:00:12]} exd5 {[%emt 0:00:11]} 26. a4 {[%emt 0:00:05]} Rc4 {[%emt 0:00:06]} 27. f3 {[%emt 0:00:13]} Bc3 {[%emt 0:00:10]} 28. Be1 {[%emt 0:00:05]} Bxe1 {[%emt 0:00:04]} 29. Rxe1 {[%emt 0:00:03]} Rb8 {[%emt 0:00:03]} 30. Re7 {[%emt 0:00:10]} a5 {[%emt 0:00:03]} 31. b5 {[%emt 0:00:03]} Rxa4 {[%emt 0:00:03]} 32. b6 {[%emt 0:00:09]} Rb4 {[%emt 0:00:03]} 33. Ra1 {[%emt 0:00:06]} R8xb6 {[%emt 0:00:09]} 34. Rxa5 {[%emt 0:00:03]} Rb1+ {[%emt 0:00:03]} 35. Kf2 {[%emt 0:00:03]} R1b2+ {[%emt 0:00:03]} 36. Kg3 {[%emt 0:00:03]} Rd2 {[%emt 0:00:04]} 37. Ra8+ {[%emt 0:00:04]} Kg7 {[%emt 0:00:03]} 38. Raa7 {[%emt 0:00:03]} Rf6 {[%emt 0:00:03]} 39. Red7 {[%emt 0:00:03]} Rf5 {[%emt 0:00:03]} 40. h4 {[%emt 0:00:03]} h5 {[%emt 0:00:03]} 41. Ra5 {[%emt 0:00:03]} g5 {[%emt 0:00:08]} 42. Ra4 0-1

[Event "GCT Saint Louis Blitz 2019"]
[Site "Saint Louis"]
[Date "2019.08.14"]
[Round "18"]
[White "Dominguez Perez, Leinier"]
[Black "Karjakin, Sergey"]
[Result "0-1"]
[ECO "B12"]
[WhiteElo "2763"]
[BlackElo "2750"]
[Annotator "RC"]
[PlyCount "114"]
[EventDate "2019.08.13"]
[EventType "tourn"]
[EventCountry "USA"]
[SourceTitle "playchess.com"]
[Source "ChessBase"]
[SourceQuality "1"]
[TimeMode "Bronstein"]
[TimeControl "300+3"]

1. e4 {[%emt 0:00:00]} c6 {[%emt 0:00:00]} 2. d4 {[%emt 0:00:00]} d5 {[%emt 0:00:00]} 3. e5 {[%emt 0:00:00]} Bf5 {[%emt 0:00:00]} 4. Nf3 {[%emt 0:00:00]} e6 {[%emt 0:00:00]} 5. Be2 {[%emt 0:00:00]} Ne7 {[%emt 0:00:00]} 6. c3 {[%emt 0:00:00]} h6 {[%emt 0:00:00]} 7. O-O {[%emt 0:00:00]} Nd7 {[%emt 0:00:00]} 8. Nbd2 {[%emt 0:00:00]} Qc7 {[%emt 0:00:00]} 9. Re1 {[%emt 0:00:00]} Bg6 {[%emt 0:00:00]} 10. b3 {[%emt 0:00:00]} Nc8 {[%emt 0:00:14]} 11. Nf1 {[%emt 0:00:04]} Be7 {[%emt 0:00:06]} 12. Ng3 {[%emt 0:00:11]} c5 {[%emt 0:00:15]} 13. Bd3 {[%emt 0:00:09]} Bxd3 {[%emt 0:00:03]} 14. Qxd3 {[%emt 0:00:03]} Ncb6 {[%emt 0:00:08]} 15. Nh5 {[%emt 0:00:26]} g6 {[%emt 0:00:03]} 16. Nf4 {[%emt 0:00:03]} Qc6 {[%emt 0:00:12]} 17. Bd2 {[%emt 0:00:08]} c4 {[%emt 0:00:09]} 18. Qc2 {[%emt 0:00:06]} a5 {[%emt 0:00:03]} 19. Rab1 {[%emt 0:00:09]} cxb3 {[%emt 0:00:36]} 20. axb3 {[%emt 0:00:03]} a4 {[%emt 0:00:03]} 21. bxa4 {[%emt 0:00:13]} Rxa4 {[%emt 0:00:04]} 22. Ra1 {[%emt 0:00:18]} Ra6 {[%emt 0:00:10]} 23. h4 {[%emt 0:00:42]} Nc4 {[%emt 0:00:05]} 24. g3 {[%emt 0:00:03]} Kd8 {[%emt 0:00:15]} 25. h5 {[%emt 0:00:17]} g5 {[%emt 0:00:12]} 26. Ng2 {[%emt 0:00:10]} Ndb6 {[%emt 0:00:22]} 27. Nh2 {[%emt 0:00:08]} Na4 {[%emt 0:00:05]} 28. Rec1 {[%emt 0:00:45]} Kd7 {[%emt 0:00:20]} 29. Ng4 {[%emt 0:00:05]} b5 {[%emt 0:00:06]} 30. N2e3 {[%emt 0:00:10]} Nxe3 {[%emt 0:01:10]} 31. Bxe3 {[%emt 0:00:07]} Qc4 {[%emt 0:00:05]} 32. Kg2 {[%emt 0:00:55]} Rc6 {[%emt 0:00:14]} 33. Qd2 {[%emt 0:00:21]} Rc7 {[%emt 0:00:07]} 34. Rc2 {[%emt 0:00:15]} Nxc3 {[%emt 0:00:05]} 35. Qe1 {[%emt 0:00:13]} Qd3 {[%emt 0:00:07]} 36. Rd2 {[%emt 0:00:03]} Qf5 {[%emt 0:00:05]} 37. f3 {[%emt 0:00:03]} Rhc8 {[%emt 0:00:08]} 38. Rb2 {[%emt 0:00:05]} b4 {[%emt 0:00:09]} 39. Qf1 {[%emt 0:00:03]} Qh7 {[%emt 0:00:09]} 40. Bf2 {[%emt 0:00:03]} Ke8 {[%emt 0:00:03]} 41. Qa6 {[%emt 0:00:03]} Kf8 {[%emt 0:00:03]} 42. Qb6 {[%emt 0:00:03]} Kg7 {[%emt 0:00:04]} 43. Ra7 {[%emt 0:00:03]} Rxa7 {[%emt 0:00:12]} 44. Qxa7 {[%emt 0:00:03]} Bf8 {[%emt 0:00:03]} 45. Qd7 {[%emt 0:00:03]} Ra8 {[%emt 0:00:03]} 46. Nf6 {[%emt 0:00:04]} Qd3 {[%emt 0:00:03]} 47. Ne8+ {[%emt 0:00:03]} Rxe8 48. Qxe8 g4 {[%emt 0:00:20]} 49. fxg4 {[%emt 0:00:03]} Qe4+ {[%emt 0:00:03]} 50. Kh2 {[%emt 0:00:03]} Qxg4 {[%emt 0:00:03]} 51. Kg2 {[%emt 0:00:04]} Qxh5 {[%emt 0:00:03]} 52. Qd7 {[%emt 0:00:03]} Qg6 {[%emt 0:00:04]} 53. Rd2 {[%emt 0:00:03]} Qe4+ {[%emt 0:00:03]} 54. Kh2 {[%emt 0:00:03]} Qf5 {[%emt 0:00:03]} 55. Kg2 {[%emt 0:00:03]} Ne4 {[%emt 0:00:03]} 56. Rb2 {[%emt 0:00:03]} Ng5 {[%emt 0:00:03]} 57. Qb5 {[%emt 0:00:03]} Qh3+ {[%emt 0:00:03]} 0-1